[Event "*** Titled Tuesday Blitz"]
[Site "Chess.com"]
[Date "2020.04.28"]
[Round "6"]
[White "SahajGrover"]
[Black "Beca95"]
[Result "1-0"]
[WhiteElo "2721"]
[BlackElo "2857"]
[TimeControl "180+1"]
[EndTime "11:08:47 PDT"]
[Termination "SahajGrover won by checkmate"]

1. e4 {[%clk 0:02:58.3]} 1... c5 {[%clk 0:02:54.5]} 2. Nf3 {[%clk 0:02:56.1]}
2... d6 {[%clk 0:02:53.9]} 3. d4 {[%clk 0:02:52.8]} 3... cxd4 {[%clk 0:02:53.4]}
4. Nxd4 {[%clk 0:02:53.7]} 4... Nf6 {[%clk 0:02:52.5]} 5. Nc3 {[%clk 0:02:54.3]}
5... Nc6 {[%clk 0:02:48]} 6. Bc4 {[%clk 0:02:43.1]} 6... Qb6 {[%clk 0:02:41.8]}
7. Nb3 {[%clk 0:02:42.9]} 7... e6 {[%clk 0:02:40.5]} 8. Be3 {[%clk 0:02:38.5]}
8... Qc7 {[%clk 0:02:39.9]} 9. f4 {[%clk 0:02:25.1]} 9... a6 {[%clk 0:02:39]}
10. Bd3 {[%clk 0:02:24.8]} 10... b5 {[%clk 0:02:37.6]} 11. O-O {[%clk
0:02:23.8]} 11... Bb7 {[%clk 0:02:36.2]} 12. Qe2 {[%clk 0:02:21.2]} 12... Be7
{[%clk 0:02:34.9]} 13. a3 {[%clk 0:02:17.5]} 13... h5 {[%clk 0:02:35]} 14. Kh1
{[%clk 0:02:11.8]} 14... h4 {[%clk 0:02:33.1]} 15. Nd4 {[%clk 0:02:03.8]} 15...
h3 {[%clk 0:02:32.1]} 16. g3 {[%clk 0:02:01.1]} 16... Rc8 {[%clk 0:02:07.2]} 17.
Nd1 {[%clk 0:01:34.4]} 17... Na5 {[%clk 0:01:39.4]} 18. Nf2 {[%clk 0:01:27.9]}
18... g6 {[%clk 0:01:37.8]} 19. Kg1 {[%clk 0:01:19.8]} 19... Nc4 {[%clk
0:01:36.2]} 20. Bc1 {[%clk 0:01:16.7]} 20... Qb6 {[%clk 0:01:34.6]} 21. c3
{[%clk 0:01:10.2]} 21... e5 {[%clk 0:01:18.1]} 22. Nc2 {[%clk 0:00:56]} 22...
exf4 {[%clk 0:01:07.8]} 23. Bxf4 {[%clk 0:00:53.5]} 23... Nxb2 {[%clk
0:01:05.6]} 24. Be3 {[%clk 0:00:46.1]} 24... Qa5 {[%clk 0:00:40.5]} 25. Bd4
{[%clk 0:00:43.3]} 25... Rh5 {[%clk 0:00:31.6]} 26. Nb4 {[%clk 0:00:25.2]} 26...
Nxd3 {[%clk 0:00:29.7]} 27. Nbxd3 {[%clk 0:00:26.1]} 27... Qc7 {[%clk
0:00:23.6]} 28. Rae1 {[%clk 0:00:18.2]} 28... Nd7 {[%clk 0:00:21.2]} 29. Ng4
{[%clk 0:00:17.1]} 29... Ne5 {[%clk 0:00:19.4]} 30. Qf2 {[%clk 0:00:05.9]} 30...
Bd8 {[%clk 0:00:18.8]} 31. Ndxe5 {[%clk 0:00:05.3]} 31... dxe5 {[%clk
0:00:19.2]} 32. Nxe5 {[%clk 0:00:05.5]} 32... Rh7 {[%clk 0:00:15.7]} 33. Ng4
{[%clk 0:00:05.7]} 33... Qc6 {[%clk 0:00:14.3]} 34. Ne5 {[%clk 0:00:05.3]} 34...
Qe6 {[%clk 0:00:13.8]} 35. Nf3 {[%clk 0:00:04.7]} 35... Be7 {[%clk 0:00:13.1]}
36. Ne5 {[%clk 0:00:05]} 36... g5 {[%clk 0:00:12.4]} 37. Nd3 {[%clk 0:00:05.5]}
37... f6 {[%clk 0:00:12]} 38. Nc5 {[%clk 0:00:04.9]} 38... Bxc5 {[%clk
0:00:10.7]} 39. Bxc5 {[%clk 0:00:05.8]} 39... Rf7 {[%clk 0:00:10.2]} 40. Bd4
{[%clk 0:00:06.5]} 40... Rc4 {[%clk 0:00:09.8]} 41. Qf3 {[%clk 0:00:06.7]} 41...
Kd7 {[%clk 0:00:09.6]} 42. Qh5 {[%clk 0:00:06.5]} 42... Kc7 {[%clk 0:00:09.2]}
43. Qh6 {[%clk 0:00:05.5]} 43... Qc6 {[%clk 0:00:08.6]} 44. Rxf6 {[%clk
0:00:05.6]} 44... Rxf6 {[%clk 0:00:08.7]} 45. Qxf6 {[%clk 0:00:06.4]} 45... Qxf6
{[%clk 0:00:08.9]} 46. Bxf6 {[%clk 0:00:07.3]} 46... Bxe4 {[%clk 0:00:07.7]} 47.
Bxg5 {[%clk 0:00:06.5]} 47... Kd6 {[%clk 0:00:08.3]} 48. Rd1+ {[%clk 0:00:03.4]}
48... Ke5 {[%clk 0:00:08.5]} 49. Bf4+ {[%clk 0:00:03.6]} 49... Kf5 {[%clk
0:00:08.9]} 50. Rc1 {[%clk 0:00:04]} 50... Rc5 {[%clk 0:00:07.6]} 51. Kf2 {[%clk
0:00:04.1]} 51... Rd5 {[%clk 0:00:08.2]} 52. Ke2 {[%clk 0:00:04.7]} 52... Kg4
{[%clk 0:00:08]} 53. Be3 {[%clk 0:00:04.5]} 53... Bf3+ {[%clk 0:00:07.9]} 54.
Kf2 {[%clk 0:00:04.7]} 54... a5 {[%clk 0:00:08.1]} 55. c4 {[%clk 0:00:05.2]}
55... Rd3 {[%clk 0:00:05.6]} 56. cxb5 {[%clk 0:00:05.6]} 56... Bd5 {[%clk
0:00:05.7]} 57. b6 {[%clk 0:00:05.5]} 57... Rb3 {[%clk 0:00:06]} 58. Rd1 {[%clk
0:00:06.1]} 58... Bb7 {[%clk 0:00:03.9]} 59. Rd4+ {[%clk 0:00:06.2]} 59... Kf5
{[%clk 0:00:03.5]} 60. Rf4+ {[%clk 0:00:05.8]} 60... Ke5 {[%clk 0:00:03.4]} 61.
Bd4+ {[%clk 0:00:05.6]} 61... Ke6 {[%clk 0:00:03.8]} 62. a4 {[%clk 0:00:05.6]}
62... Bd5 {[%clk 0:00:03.5]} 63. Rf6+ {[%clk 0:00:05.5]} 63... Ke7 {[%clk
0:00:04.1]} 64. Rh6 {[%clk 0:00:05.9]} 64... Kd7 {[%clk 0:00:04.2]} 65. Rxh3
{[%clk 0:00:05.9]} 65... Rb4 {[%clk 0:00:04]} 66. Bc5 {[%clk 0:00:05.3]} 66...
Rc4 {[%clk 0:00:04.3]} 67. Rh7+ {[%clk 0:00:05.3]} 67... Ke6 {[%clk 0:00:03.7]}
68. Rc7 {[%clk 0:00:06.2]} 68... Rc2+ {[%clk 0:00:03.3]} 69. Ke3 {[%clk
0:00:07.1]} 69... Rc3+ {[%clk 0:00:03.8]} 70. Kf4 {[%clk 0:00:07.5]} 70... Rc4+
{[%clk 0:00:04]} 71. Kg5 {[%clk 0:00:08.1]} 71... Rc2 {[%clk 0:00:04.2]} 72.
Re7# {[%clk 0:00:08.3]} 1-0

[Event "*** Titled Tuesday Blitz"]
[Site "Chess.com"]
[Date "2020.04.28"]
[Round "6"]
[White "djamir"]
[Black "YQPerez"]
[Result "1/2-1/2"]
[WhiteElo "2733"]
[BlackElo "2951"]
[TimeControl "180+1"]
[EndTime "11:08:48 PDT"]
[Termination "Game drawn by repetition"]

1. d4 {[%clk 0:03:00.9]} 1... d5 {[%clk 0:02:59.5]} 2. Bf4 {[%clk 0:03:00.5]}
2... Nf6 {[%clk 0:02:58.6]} 3. e3 {[%clk 0:03:00.4]} 3... e6 {[%clk 0:02:58.1]}
4. Nd2 {[%clk 0:02:57.6]} 4... Bd6 {[%clk 0:02:57.8]} 5. Bg3 {[%clk 0:02:57.8]}
5... c5 {[%clk 0:02:53.2]} 6. c3 {[%clk 0:02:57.9]} 6... Nc6 {[%clk 0:02:46.8]}
7. Ngf3 {[%clk 0:02:57.9]} 7... O-O {[%clk 0:02:41.9]} 8. Bd3 {[%clk 0:02:57]}
8... b6 {[%clk 0:02:41.2]} 9. Ne5 {[%clk 0:02:53.1]} 9... Bb7 {[%clk 0:02:40.9]}
10. f4 {[%clk 0:02:50.9]} 10... Ne7 {[%clk 0:02:41]} 11. Qb1 {[%clk 0:02:51.1]}
11... Qc8 {[%clk 0:02:35.4]} 12. h3 {[%clk 0:02:24.7]} 12... Nf5 {[%clk
0:02:32.2]} 13. Bf2 {[%clk 0:02:23.5]} 13... Be7 {[%clk 0:02:13.7]} 14. Ng4
{[%clk 0:02:23.4]} 14... g6 {[%clk 0:01:46.2]} 15. Nxf6+ {[%clk 0:02:16.1]}
15... Bxf6 {[%clk 0:01:47.1]} 16. g4 {[%clk 0:02:06.3]} 16... Nd6 {[%clk
0:01:47]} 17. h4 {[%clk 0:02:03.5]} 17... Qc6 {[%clk 0:01:31.2]} 18. g5 {[%clk
0:02:01.2]} 18... Bg7 {[%clk 0:01:30.3]} 19. h5 {[%clk 0:02:01.7]} 19... Ne4
{[%clk 0:01:25]} 20. a4 {[%clk 0:01:42.6]} 20... a6 {[%clk 0:01:20.4]} 21. Ke2
{[%clk 0:01:41.8]} 21... b5 {[%clk 0:01:16]} 22. axb5 {[%clk 0:01:39]} 22...
axb5 {[%clk 0:01:16.9]} 23. hxg6 {[%clk 0:01:34.7]} 23... hxg6 {[%clk
0:01:13.2]} 24. Nf3 {[%clk 0:01:30.4]} 24... Rxa1 {[%clk 0:01:10.8]} 25. Qxa1
{[%clk 0:01:31.3]} 25... Ra8 {[%clk 0:01:09.1]} 26. Qb1 {[%clk 0:01:31.6]} 26...
b4 {[%clk 0:00:58.5]} 27. Ne5 {[%clk 0:01:11.9]} 27... Bxe5 {[%clk 0:00:56.4]}
28. fxe5 {[%clk 0:01:12.8]} 28... Ba6 {[%clk 0:00:54.7]} 29. Be1 {[%clk
0:00:45.8]} 29... Bxd3+ {[%clk 0:00:45.7]} 30. Qxd3 {[%clk 0:00:46.7]} 30... Ra2
{[%clk 0:00:45.5]} 31. Qb1 {[%clk 0:00:39.2]} 31... Qa6+ {[%clk 0:00:43]} 32.
Kf3 {[%clk 0:00:39.2]} 32... bxc3 {[%clk 0:00:39.6]} 33. bxc3 {[%clk 0:00:27.3]}
33... Qe2+ {[%clk 0:00:39]} 34. Kf4 {[%clk 0:00:27.7]} 34... Ra8 {[%clk
0:00:18]} 35. Qb7 {[%clk 0:00:22.1]} 35... Rf8 {[%clk 0:00:15.2]} 36. Qe7 {[%clk
0:00:19.7]} 36... Ra8 {[%clk 0:00:07.9]} 37. Qb7 {[%clk 0:00:15.6]} 37... Qa6
{[%clk 0:00:08]} 38. Qxa6 {[%clk 0:00:14.3]} 38... Rxa6 {[%clk 0:00:08.9]} 39.
c4 {[%clk 0:00:14.7]} 39... cxd4 {[%clk 0:00:04.8]} 40. cxd5 {[%clk 0:00:13.8]}
40... exd5 {[%clk 0:00:04.5]} 41. exd4 {[%clk 0:00:14]} 41... Ra4 {[%clk
0:00:04.5]} 42. Ke3 {[%clk 0:00:14.5]} 42... Ra3+ {[%clk 0:00:04.6]} 43. Kf4
{[%clk 0:00:14.2]} 43... Rd3 {[%clk 0:00:03.9]} 44. Ba5 {[%clk 0:00:09.6]} 44...
Rxd4 {[%clk 0:00:04.1]} 45. Ke3 {[%clk 0:00:08.5]} 45... Ra4 {[%clk 0:00:04.1]}
46. Bd8 {[%clk 0:00:08.6]} 46... Kf8 {[%clk 0:00:03.3]} 47. Rh8+ {[%clk
0:00:06.3]} 47... Kg7 {[%clk 0:00:03.6]} 48. Rh2 {[%clk 0:00:07.2]} 48... Ra3+
{[%clk 0:00:02.7]} 49. Kd4 {[%clk 0:00:07.3]} 49... Rg3 {[%clk 0:00:02]} 50.
Bf6+ {[%clk 0:00:06.4]} 50... Nxf6 {[%clk 0:00:01.8]} 51. gxf6+ {[%clk
0:00:07.3]} 51... Kg8 {[%clk 0:00:02.7]} 52. Kxd5 {[%clk 0:00:07.9]} 52... Rd3+
{[%clk 0:00:03]} 53. Ke4 {[%clk 0:00:08.3]} 53... Rd8 {[%clk 0:00:03.8]} 54. Rc2
{[%clk 0:00:08]} 54... Re8 {[%clk 0:00:04.3]} 55. Rg2 {[%clk 0:00:08.1]} 55...
Kh7 {[%clk 0:00:04.4]} 56. Rh2+ {[%clk 0:00:07.8]} 56... Kg8 {[%clk 0:00:04.9]}
57. Kf4 {[%clk 0:00:08.7]} 57... Ra8 {[%clk 0:00:05]} 58. Re2 {[%clk 0:00:09.3]}
58... Re8 {[%clk 0:00:05]} 59. Kg5 {[%clk 0:00:09.6]} 59... Ra8 {[%clk
0:00:04.7]} 60. Kf4 {[%clk 0:00:07.7]} 60... Ra4+ {[%clk 0:00:04.5]} 61. Kg5
{[%clk 0:00:08.2]} 61... Ra5 {[%clk 0:00:05]} 62. Re3 {[%clk 0:00:08]} 62... Kf8
{[%clk 0:00:05.3]} 63. Kf4 {[%clk 0:00:07.7]} 63... Ke8 {[%clk 0:00:05.7]} 64.
Rd3 {[%clk 0:00:08.2]} 64... Ra4+ {[%clk 0:00:05.7]} 65. Ke3 {[%clk 0:00:07.7]}
65... Rg4 {[%clk 0:00:04.8]} 66. Rd6 {[%clk 0:00:06.7]} 66... Rh4 {[%clk
0:00:04.2]} 67. Ra6 {[%clk 0:00:05.8]} 67... Rg4 {[%clk 0:00:02.3]} 68. Ra7
{[%clk 0:00:05.8]} 68... Rh4 {[%clk 0:00:01.2]} 69. Re7+ {[%clk 0:00:06.7]}
69... Kf8 {[%clk 0:00:01.8]} 70. Ra7 {[%clk 0:00:07.2]} 70... Ke8 {[%clk
0:00:02.3]} 71. Re7+ {[%clk 0:00:07.3]} 71... Kf8 {[%clk 0:00:02.9]} 72. Rb7
{[%clk 0:00:07.9]} 72... Ke8 {[%clk 0:00:03.4]} 73. Re7+ {[%clk 0:00:07.9]}
1/2-1/2

[Event "*** Titled Tuesday Blitz"]
[Site "Chess.com"]
[Date "2020.04.28"]
[Round "6"]
[White "Gabrielian_Artur"]
[Black "GM_dmitrij"]
[Result "1/2-1/2"]
[WhiteElo "2730"]
[BlackElo "2983"]
[TimeControl "180+1"]
[EndTime "11:09:02 PDT"]
[Termination "Game drawn - insufficient material"]

1. e4 {[%clk 0:03:00.9]} 1... e5 {[%clk 0:02:59.9]} 2. Nc3 {[%clk 0:03:00.5]}
2... Nf6 {[%clk 0:02:59]} 3. g3 {[%clk 0:03:00.5]} 3... Bc5 {[%clk 0:02:58.3]}
4. Bg2 {[%clk 0:03:00.3]} 4... d6 {[%clk 0:02:57.7]} 5. Nge2 {[%clk 0:02:59.4]}
5... Nc6 {[%clk 0:02:58.1]} 6. Na4 {[%clk 0:02:58.4]} 6... Be6 {[%clk
0:02:51.7]} 7. c3 {[%clk 0:02:56]} 7... Qd7 {[%clk 0:02:37]} 8. O-O {[%clk
0:02:24.3]} 8... Bb6 {[%clk 0:02:29.7]} 9. d4 {[%clk 0:02:20.4]} 9... Bh3 {[%clk
0:02:29.7]} 10. Nxb6 {[%clk 0:02:17.9]} 10... axb6 {[%clk 0:02:29.6]} 11. dxe5
{[%clk 0:02:04]} 11... Bxg2 {[%clk 0:02:15.7]} 12. Kxg2 {[%clk 0:01:50.6]} 12...
dxe5 {[%clk 0:02:13.3]} 13. Qxd7+ {[%clk 0:01:47]} 13... Nxd7 {[%clk 0:02:00.7]}
14. Be3 {[%clk 0:01:43.4]} 14... Ke7 {[%clk 0:01:57.1]} 15. Rfd1 {[%clk
0:01:32.9]} 15... Na5 {[%clk 0:01:37.5]} 16. b3 {[%clk 0:01:28.9]} 16... Nc6
{[%clk 0:01:37.6]} 17. c4 {[%clk 0:01:24.9]} 17... Nb4 {[%clk 0:01:10.7]} 18.
Nc3 {[%clk 0:01:23.3]} 18... c6 {[%clk 0:00:51.5]} 19. Rd2 {[%clk 0:01:14.8]}
19... Nc5 {[%clk 0:00:41]} 20. Bxc5+ {[%clk 0:01:09.6]} 20... bxc5 {[%clk
0:00:40.4]} 21. Na4 {[%clk 0:01:05.7]} 21... Na6 {[%clk 0:00:40.4]} 22. Rad1
{[%clk 0:00:59.9]} 22... Rhd8 {[%clk 0:00:39.4]} 23. Rxd8 {[%clk 0:00:57.8]}
23... Rxd8 {[%clk 0:00:40.3]} 24. Rxd8 {[%clk 0:00:57.7]} 24... Kxd8 {[%clk
0:00:40.4]} 25. f4 {[%clk 0:00:57.9]} 25... Ke7 {[%clk 0:00:38.1]} 26. Kf3
{[%clk 0:00:56.9]} 26... Kd6 {[%clk 0:00:37.9]} 27. a3 {[%clk 0:00:48.2]} 27...
f6 {[%clk 0:00:30.7]} 28. Ke3 {[%clk 0:00:45.5]} 28... Nc7 {[%clk 0:00:30]} 29.
f5 {[%clk 0:00:44.2]} 29... Na6 {[%clk 0:00:24.3]} 30. g4 {[%clk 0:00:42.9]}
30... Nb8 {[%clk 0:00:23.2]} 31. h4 {[%clk 0:00:42.1]} 31... h6 {[%clk
0:00:22.3]} 32. Nb2 {[%clk 0:00:38]} 32... Nd7 {[%clk 0:00:20.6]} 33. Nd3 {[%clk
0:00:34.4]} 33... b6 {[%clk 0:00:20.8]} 34. b4 {[%clk 0:00:28.9]} 34... cxb4
{[%clk 0:00:18.6]} 35. axb4 {[%clk 0:00:28.7]} 35... Ke7 {[%clk 0:00:17.9]} 36.
c5 {[%clk 0:00:26.9]} 36... bxc5 {[%clk 0:00:16.2]} 37. bxc5 {[%clk 0:00:26.6]}
37... Kd8 {[%clk 0:00:14.9]} 38. Kd2 {[%clk 0:00:25.2]} 38... Kc7 {[%clk
0:00:14.5]} 39. Kc3 {[%clk 0:00:25.4]} 39... Kb7 {[%clk 0:00:14.8]} 40. Kc4
{[%clk 0:00:23.6]} 40... Ka6 {[%clk 0:00:13.1]} 41. Nb4+ {[%clk 0:00:23.7]}
41... Kb7 {[%clk 0:00:13.2]} 42. Nd3 {[%clk 0:00:22.9]} 42... Ka6 {[%clk
0:00:13.5]} 43. Ne1 {[%clk 0:00:17.4]} 43... Kb7 {[%clk 0:00:13.5]} 44. Nf3
{[%clk 0:00:17.2]} 44... Kc7 {[%clk 0:00:13.6]} 45. g5 {[%clk 0:00:17.5]} 45...
hxg5 {[%clk 0:00:14.5]} 46. hxg5 {[%clk 0:00:17.7]} 46... Kd8 {[%clk 0:00:12.6]}
47. gxf6 {[%clk 0:00:14.4]} 47... gxf6 {[%clk 0:00:13.5]} 48. Nh4 {[%clk
0:00:14.5]} 48... Ke7 {[%clk 0:00:13]} 49. Ng6+ {[%clk 0:00:13.2]} 49... Kf7
{[%clk 0:00:13.5]} 50. Nh4 {[%clk 0:00:13.5]} 50... Kg7 {[%clk 0:00:13.5]} 51.
Nf3 {[%clk 0:00:13.3]} 51... Kh6 {[%clk 0:00:13.8]} 52. Nd2 {[%clk 0:00:11.6]}
52... Kg5 {[%clk 0:00:14.2]} 53. Nb3 {[%clk 0:00:11.8]} 53... Kf4 {[%clk
0:00:13.7]} 54. Kd3 {[%clk 0:00:11.9]} 54... Kf3 {[%clk 0:00:13]} 55. Nd2+
{[%clk 0:00:12]} 55... Kg4 {[%clk 0:00:12.9]} 56. Nb3 {[%clk 0:00:12.1]} 56...
Kf4 {[%clk 0:00:13.5]} 57. Na5 {[%clk 0:00:10]} 57... Nxc5+ {[%clk 0:00:13.6]}
58. Ke2 {[%clk 0:00:08.1]} 58... Nxe4 {[%clk 0:00:14.5]} 59. Nxc6 {[%clk
0:00:07.9]} 59... Kxf5 {[%clk 0:00:15.1]} 60. Ke3 {[%clk 0:00:08.4]} 60... Nd6
{[%clk 0:00:14.3]} 61. Nd8 {[%clk 0:00:07.2]} 61... Kg4 {[%clk 0:00:13]} 62. Ne6
{[%clk 0:00:06.7]} 62... f5 {[%clk 0:00:11.8]} 63. Nc7 {[%clk 0:00:07]} 63...
f4+ {[%clk 0:00:11.9]} 64. Ke2 {[%clk 0:00:07.1]} 64... e4 {[%clk 0:00:11.5]}
65. Nd5 {[%clk 0:00:07]} 65... Kf5 {[%clk 0:00:11.5]} 66. Ne7+ {[%clk
0:00:06.8]} 66... Ke5 {[%clk 0:00:11.5]} 67. Ng6+ {[%clk 0:00:07]} 67... Kf5
{[%clk 0:00:12]} 68. Ne7+ {[%clk 0:00:07.3]} 68... Kg4 {[%clk 0:00:12.4]} 69.
Nd5 {[%clk 0:00:07.1]} 69... Kg3 {[%clk 0:00:11.7]} 70. Nf6 {[%clk 0:00:06.1]}
70... Kg2 {[%clk 0:00:11.3]} 71. Nh5 {[%clk 0:00:05.9]} 71... f3+ {[%clk
0:00:10.2]} 72. Ke3 {[%clk 0:00:06.3]} 72... f2 {[%clk 0:00:10.7]} 73. Nf4+
{[%clk 0:00:05.8]} 73... Kg3 {[%clk 0:00:11]} 74. Ne2+ {[%clk 0:00:05.3]} 74...
Kg2 {[%clk 0:00:10.8]} 75. Nf4+ {[%clk 0:00:05.6]} 75... Kf1 {[%clk 0:00:11.2]}
76. Nh3 {[%clk 0:00:05.1]} 76... Ke1 {[%clk 0:00:06.7]} 77. Nxf2 {[%clk
0:00:04.6]} 77... Nc4+ {[%clk 0:00:07.1]} 78. Kxe4 {[%clk 0:00:04.9]} 1/2-1/2

[Event "*** Titled Tuesday Blitz"]
[Site "Chess.com"]
[Date "2020.04.28"]
[Round "6"]
[White "GMartin_Petrov"]
[Black "Artem_Koval"]
[Result "1-0"]
[WhiteElo "2667"]
[BlackElo "2431"]
[TimeControl "180+1"]
[EndTime "11:09:03 PDT"]
[Termination "GMartin_Petrov won by checkmate"]

1. c4 {[%clk 0:03:00.9]} 1... e5 {[%clk 0:02:59.1]} 2. d3 {[%clk 0:03:00.5]}
2... Nc6 {[%clk 0:02:58.2]} 3. Nf3 {[%clk 0:03:00.1]} 3... d6 {[%clk 0:02:58.3]}
4. g3 {[%clk 0:02:59.4]} 4... Nf6 {[%clk 0:02:56.3]} 5. Bg2 {[%clk 0:02:59.1]}
5... Bg4 {[%clk 0:02:56]} 6. Nc3 {[%clk 0:02:55.5]} 6... Qd7 {[%clk 0:02:50.6]}
7. h3 {[%clk 0:02:48.5]} 7... Bf5 {[%clk 0:02:48.8]} 8. Rb1 {[%clk 0:02:32.2]}
8... a5 {[%clk 0:02:46]} 9. a3 {[%clk 0:02:30.8]} 9... h6 {[%clk 0:02:37.4]} 10.
Nd5 {[%clk 0:02:23.9]} 10... Nxd5 {[%clk 0:02:13.6]} 11. cxd5 {[%clk 0:02:24.8]}
11... Ne7 {[%clk 0:02:13.7]} 12. e4 {[%clk 0:02:10.6]} 12... Bg6 {[%clk
0:02:10.1]} 13. O-O {[%clk 0:02:10]} 13... f5 {[%clk 0:01:56.3]} 14. Nh4 {[%clk
0:02:01.3]} 14... Bh7 {[%clk 0:01:49.6]} 15. f4 {[%clk 0:01:35.2]} 15... g6
{[%clk 0:01:41.7]} 16. fxe5 {[%clk 0:01:28.5]} 16... dxe5 {[%clk 0:01:27.9]} 17.
d4 {[%clk 0:01:00.7]} 17... Bg7 {[%clk 0:01:07.9]} 18. dxe5 {[%clk 0:00:59.5]}
18... Bxe5 {[%clk 0:01:08.8]} 19. Bxh6 {[%clk 0:00:47]} 19... Bxg3 {[%clk
0:01:05]} 20. Nf3 {[%clk 0:00:37.7]} 20... fxe4 {[%clk 0:01:00.7]} 21. Ng5
{[%clk 0:00:36.5]} 21... Qxd5 {[%clk 0:00:54]} 22. Qxd5 {[%clk 0:00:35.4]} 22...
Nxd5 {[%clk 0:00:54.9]} 23. Bg7 {[%clk 0:00:31.4]} 23... Rg8 {[%clk 0:00:51.6]}
24. Bd4 {[%clk 0:00:31.9]} 24... O-O-O {[%clk 0:00:40.5]} 25. Nxh7 {[%clk
0:00:31.8]} 25... Nf4 {[%clk 0:00:40.8]} 26. Be3 {[%clk 0:00:27.6]} 26... Ne2+
{[%clk 0:00:39.9]} 27. Kh1 {[%clk 0:00:27.1]} 27... Rh8 {[%clk 0:00:35.6]} 28.
Ng5 {[%clk 0:00:25.5]} 28... Rd3 {[%clk 0:00:32.9]} 29. Bc1 {[%clk 0:00:21.4]}
29... e3 {[%clk 0:00:21.2]} 30. Be4 {[%clk 0:00:20.5]} 30... Rd7 {[%clk
0:00:12.5]} 31. Bxg6 {[%clk 0:00:13]} 31... Rg7 {[%clk 0:00:10.3]} 32. Bf5+
{[%clk 0:00:13.2]} 32... Kb8 {[%clk 0:00:10.6]} 33. Bxe3 {[%clk 0:00:13.5]}
33... Bd6 {[%clk 0:00:06.9]} 34. Rf3 {[%clk 0:00:11.6]} 34... Ng3+ {[%clk
0:00:06.7]} 35. Rxg3 {[%clk 0:00:11.8]} 35... Bxg3 {[%clk 0:00:07.6]} 36. Rg1
{[%clk 0:00:10.1]} 36... Bh4 {[%clk 0:00:07.1]} 37. Bd4 {[%clk 0:00:09.6]} 37...
Rhg8 {[%clk 0:00:02.6]} 38. Bxg7 {[%clk 0:00:08.7]} 38... Rxg7 {[%clk
0:00:03.5]} 39. Nf3 {[%clk 0:00:09.1]} 39... Rxg1+ {[%clk 0:00:01.7]} 40. Kxg1
{[%clk 0:00:10]} 40... Bf6 {[%clk 0:00:02.3]} 41. h4 {[%clk 0:00:10.1]} 41...
Bxb2 {[%clk 0:00:01.8]} 42. a4 {[%clk 0:00:10.1]} 42... c6 {[%clk 0:00:01.2]}
43. Kf1 {[%clk 0:00:09.8]} 43... b5 {[%clk 0:00:02.1]} 44. axb5 {[%clk
0:00:09.1]} 44... cxb5 {[%clk 0:00:03]} 45. Bd7 {[%clk 0:00:08.1]} 45... b4
{[%clk 0:00:02.8]} 46. Ba4 {[%clk 0:00:07.8]} 46... Kc7 {[%clk 0:00:03.7]} 47.
Ke2 {[%clk 0:00:07.9]} 47... Kd6 {[%clk 0:00:04.1]} 48. Kd3 {[%clk 0:00:08.3]}
48... Ke7 {[%clk 0:00:04.3]} 49. Ke4 {[%clk 0:00:07.2]} 49... Bc3 {[%clk
0:00:05.2]} 50. h5 {[%clk 0:00:06.8]} 50... Kf7 {[%clk 0:00:05.4]} 51. Kf5
{[%clk 0:00:07]} 51... Kg7 {[%clk 0:00:06.3]} 52. Kg5 {[%clk 0:00:06.4]} 52...
Bb2 {[%clk 0:00:05.7]} 53. h6+ {[%clk 0:00:06.5]} 53... Kh8 {[%clk 0:00:05.3]}
54. Kg6 {[%clk 0:00:05.9]} 54... Bc1 {[%clk 0:00:06.2]} 55. Ne5 {[%clk
0:00:05.8]} 55... Bxh6 {[%clk 0:00:05]} 56. Kxh6 {[%clk 0:00:06.7]} 56... Kg8
{[%clk 0:00:05.2]} 57. Kg6 {[%clk 0:00:07]} 57... Kf8 {[%clk 0:00:05.4]} 58. Nc6
{[%clk 0:00:07.2]} 58... Ke8 {[%clk 0:00:05.2]} 59. Nxa5+ {[%clk 0:00:07.3]}
59... Kf8 {[%clk 0:00:06]} 60. Kf6 {[%clk 0:00:06.9]} 60... Kg8 {[%clk
0:00:06.9]} 61. Nc6 {[%clk 0:00:06.7]} 61... Kh8 {[%clk 0:00:07.2]} 62. Ne7
{[%clk 0:00:06.3]} 62... b3 {[%clk 0:00:08.1]} 63. Bxb3 {[%clk 0:00:05.8]} 63...
Kh7 {[%clk 0:00:08.3]} 64. Ng6 {[%clk 0:00:04.9]} 64... Kh6 {[%clk 0:00:06.8]}
65. Bg8 {[%clk 0:00:05.8]} 65... Kh5 {[%clk 0:00:06.1]} 66. Ne5 {[%clk
0:00:06.2]} 66... Kh4 {[%clk 0:00:06]} 67. Bd5 {[%clk 0:00:05]} 67... Kg3 {[%clk
0:00:06.4]} 68. Nd3 {[%clk 0:00:04.9]} 68... Kg4 {[%clk 0:00:05.2]} 69. Kg6
{[%clk 0:00:04.8]} 69... Kh4 {[%clk 0:00:04.1]} 70. Bf3 {[%clk 0:00:05.1]} 70...
Kg3 {[%clk 0:00:03.8]} 71. Be2 {[%clk 0:00:05]} 71... Kh4 {[%clk 0:00:02.3]} 72.
Kf5 {[%clk 0:00:05.1]} 72... Kg3 {[%clk 0:00:02.4]} 73. Kg5 {[%clk 0:00:05.3]}
73... Kh3 {[%clk 0:00:02.1]} 74. Bf3 {[%clk 0:00:04.7]} 74... Kg3 {[%clk
0:00:01.9]} 75. Bg4 {[%clk 0:00:05.2]} 75... Kg2 {[%clk 0:00:01.4]} 76. Kh4
{[%clk 0:00:05.2]} 76... Kf1 {[%clk 0:00:02.3]} 77. Kg3 {[%clk 0:00:04.3]} 77...
Kg1 {[%clk 0:00:02.5]} 78. Be2 {[%clk 0:00:04.7]} 78... Kh1 {[%clk 0:00:02.4]}
79. Nf2+ {[%clk 0:00:05.2]} 79... Kg1 {[%clk 0:00:03.3]} 80. Nh3+ {[%clk
0:00:05.9]} 80... Kh1 {[%clk 0:00:04.2]} 81. Bf3# {[%clk 0:00:06.6]} 1-0